fUST/lending_fUST_20240117
["ID","MTS","AMOUNT","RATE_DAILY","PERIOD"]
[311926742,1705504241044,-267.81115023,0.00021917,2]
[311926744,1705504241053,-500.0,0.00021917,2]
[311926746,1705504241062,-13372.02,0.00021917,2]
[311926748,1705504241071,-500.0,0.00021917,2]
[311926750,1705504241080,-500.0,0.00021917,2]
[311926752,1705504241090,-500.0,0.00021917,2]
[311926754,1705504241099,-500.0,0.00021917,2]
[311926756,1705504241109,-500.0,0.00021917,2]
[311926757,1705504241118,-500.0,0.00021917,2]
[311926759,1705504241127,-500.0,0.00021917,2]
[311926761,1705504241136,-500.0,0.00021917,2]
[311926763,1705504241144,-500.0,0.00021917,2]
[311926765,1705504241153,-500.0,0.00021917,2]
[311926767,1705504241162,-500.0,0.00021917,2]
[311926769,1705504241171,-501.23,0.00021917,2]
[311926771,1705504241180,-500.0,0.00021917,2]
[311926773,1705504241189,-500.0,0.00021917,2]
[311926775,1705504241200,-500.0,0.00021917,2]
[311926777,1705504241211,-535.84483329,0.00021917,2]
[311926779,1705504241221,-500.0,0.00021917,2]
[311926781,1705504241230,-226.6921614,0.00021917,2]
[311926783,1705504241239,-500.0,0.00021917,2]
[311926785,1705504241248,-209.73633126,0.00021917,2]
[311926787,1705504241258,-1068.65134143,0.00021917,2]
[311926789,1705504241267,-2109.97,0.00021917,2]
[311926791,1705504241278,-500.0,0.00021917,2]
[311926793,1705504241287,-500.0,0.00021917,2]
[311926795,1705504241296,-500.0,0.00021917,2]
[311926797,1705504241306,-500.0,0.00021917,2]
[311926799,1705504241315,-573.28,0.00021917,2]
[311926801,1705504241323,-500.0,0.00021917,2]
[311926803,1705504241333,-500.0,0.00021917,2]
[311926805,1705504241342,-429.95876673,0.00021917,2]
[311926807,1705504241350,-500.0,0.00021917,2]
[311926809,1705504241359,-4932.27,0.00021917,2]
[311926811,1705504241369,-500.0,0.00021917,2]
[311926813,1705504241378,-23081.27,0.00021917,2]
[311926815,1705504241387,-500.0,0.00021917,2]
[311926823,1705504241459,-540.7180897,0.00021917,2]
[311926825,1705504241469,-500.0,0.00021917,2]
[311926827,1705504241477,-500.0,0.00021917,2]
[311926829,1705504241486,-500.0,0.00021917,2]
[311926831,1705504241495,-159.14815525,0.00021917,2]
[311926833,1705504241504,-500.0,0.00021917,2]
[311926835,1705504241513,-500.0,0.00021917,2]
[311926837,1705504241522,-166.666666,0.00021918,2]
[311926839,1705504241531,-153.0,0.00021918,2]
[311926841,1705504241540,-320.7599893,0.00021918,2]
[311926843,1705504241549,-198.957615,0.00021918,2]
[311926844,1705504241558,-198.957615,0.00021918,2]
[311926845,1705504241567,-198.957615,0.00021918,2]
[311926846,1705504241576,-198.957615,0.00021918,2]
[311926847,1705504241586,-9146.36747456,0.00021954,2]
[311926848,1705504241595,-6860.83215927,0.00021971,2]
[311926849,1705504241605,-10732.25234122,0.00021971,2]
[311926850,1705504241614,-5000.0,0.00021971,2]
[311926852,1705504241623,-923.8319043,0.00021971,2]
[311926854,1705504241633,-5000.0,0.00021971,2]
[311926856,1705504241642,-293.1976279,0.00022,4]
[311926858,1705504241651,-3955.54830897,0.00022,2]
[311926860,1705504241660,-425.53656097,0.00022,2]
[311926862,1705504241670,-154.9690062,0.00022,2]
[311926864,1705504241679,-293.1976279,0.00022,4]
[311926866,1705504241693,-500.0,0.00022052,2]
[311926868,1705504241707,-187.05075209,0.00022053,2]
[311926870,1705504241717,-500.0,0.00022053,2]
[311926873,1705504241727,-500.0,0.00022053,2]
[311926875,1705504241736,-500.0,0.00022053,2]
[311926877,1705504241745,-500.0,0.00022054,2]
[311926879,1705504241754,-500.0,0.00022054,2]
[311926880,1705504241764,-500.0,0.00022054,2]
[311926882,1705504241773,-1231.63,0.00022054,2]
[311926884,1705504241782,-346.62671906,0.00022054,2]
[311926887,1705504241792,-500.0,0.00022054,2]
[311926889,1705504241801,-444.85689834,0.00022054,2]
[311926891,1705504241810,-500.0,0.00022054,2]
[311926892,1705504241819,-606.76,0.00022054,2]
[311926894,1705504241828,-500.0,0.00022054,2]
[311926896,1705504241837,-507.15349144,0.00022054,2]
[311926898,1705504241846,-500.0,0.00022054,2]
[311926900,1705504241855,-500.0,0.00022054,2]
[311926903,1705504241864,-596.37,0.00022054,2]
[311926905,1705504241874,-510.71,0.00022054,2]
[311926907,1705504241883,-626.7,0.00022054,2]
[311926908,1705504241892,-500.0,0.00022054,2]
[311926911,1705504241902,-500.0,0.00022054,2]
[311926912,1705504241911,-500.0,0.00022054,2]
[311926915,1705504241920,-500.0,0.00022054,2]
[311926917,1705504241930,-500.0,0.00022054,2]
[311926919,1705504241939,-500.0,0.00022054,2]
[311926921,1705504241948,-500.0,0.00022054,2]
[311926923,1705504241961,-500.0,0.00022054,2]
[311926925,1705504241970,-500.0,0.00022054,2]
[311926927,1705504241979,-500.0,0.00022054,2]
[311926929,1705504241988,-500.0,0.00022054,2]
[311926931,1705504241998,-506.80923371,0.00022054,2]
[311926933,1705504242006,-500.0,0.00022054,2]
[311926935,1705504242016,-925.73,0.00022054,2]
[311926937,1705504242025,-500.0,0.00022054,2]
[311926939,1705504242034,-500.0,0.00022054,2]
[311926941,1705504242044,-500.0,0.00022054,2]
[311926943,1705504242053,-500.0,0.00022054,2]
[311926944,1705504242062,-500.0,0.00022054,2]
[311926947,1705504242074,-1922.32,0.00022054,2]
[311926950,1705504242090,-505.28582934,0.00022054,2]
[311926952,1705504242107,-500.0,0.00022054,2]
[311926955,1705504242120,-500.0,0.00022054,2]
[311926957,1705504242133,-500.0,0.00022054,2]
[311926960,1705504242147,-2772.8,0.00022054,2]
[311926962,1705504242161,-505.14162514,0.00022054,2]
[311926965,1705504242176,-500.0,0.00022054,2]
[311926968,1705504242190,-500.0,0.00022054,2]
[311926970,1705504242204,-389.81459753,0.00022054,2]
[311926972,1705504242218,-451.09078181,0.00022054,2]
[311926975,1705504242231,-500.0,0.00022054,2]
[311926977,1705504242244,-610.97756718,0.00022054,2]
[311926980,1705504242260,-500.0,0.00022054,2]
[311926982,1705504242273,-500.0,0.00022054,2]
[311926984,1705504242286,-506.36136308,0.00022054,2]
[311926987,1705504242301,-500.0,0.00022054,2]
[311926989,1705504242315,-500.0,0.00022054,2]
[311926992,1705504242327,-500.0,0.00022054,2]
[311926994,1705504242340,-500.0,0.00022054,2]
[311926997,1705504242354,-500.0,0.00022054,2]
[311926999,1705504242367,-500.0,0.00022054,2]
[311927002,1705504242382,-500.0,0.00022054,2]
[311927004,1705504242396,-720.39,0.00022054,2]
[311927007,1705504242407,-500.0,0.00022054,2]
[311927009,1705504242418,-500.0,0.00022054,2]
[311927011,1705504242429,-500.0,0.00022054,2]
[311927013,1705504242442,-597.39,0.00022054,2]
[311927016,1705504242456,-500.0,0.00022054,2]
[311927018,1705504242469,-500.0,0.00022054,2]
[311927021,1705504242481,-500.0,0.00022054,2]
[311927023,1705504242492,-1006.04,0.00022054,2]
[311927025,1705504242503,-500.0,0.00022054,2]
[311927027,1705504242515,-500.0,0.00022054,2]
[311927030,1705504242527,-500.0,0.00022054,2]
[311927032,1705504242538,-500.0,0.00022054,2]
[311927034,1705504242549,-500.0,0.00022054,2]
[311927036,1705504242560,-500.0,0.00022054,2]
[311927039,1705504242572,-500.0,0.00022054,2]
[311927041,1705504242584,-1362.15,0.00022054,2]
[311927043,1705504242596,-375.57578081,0.00022054,2]
[311927046,1705504242607,-767.89,0.00022054,2]
[311927048,1705504242619,-1140.46,0.00022054,2]
[311927050,1705504242630,-500.0,0.00022054,2]
[311927052,1705504242642,-2148.0,0.00022054,2]
[311927055,1705504242653,-500.0,0.00022054,2]
[311927057,1705504242665,-6084.07,0.00022054,2]
[311927059,1705504242682,-6934.8,0.00022054,2]
[311927061,1705504242694,-500.0,0.00022054,2]
[311927064,1705504242707,-382.58669765,0.00022054,2]
[311927066,1705504242718,-500.0,0.00022054,2]
[311927068,1705504242730,-500.0,0.00022054,2]
[311927070,1705504242741,-500.0,0.00022054,2]
[311927073,1705504242752,-658.6,0.00022054,2]
[311927075,1705504242764,-500.0,0.00022054,2]
[311927077,1705504242776,-500.0,0.00022054,2]
[311927080,1705504242788,-2351.28,0.00022054,2]
[311927082,1705504242800,-523.68136719,0.00022054,2]
[311927084,1705504242811,-500.0,0.00022054,2]
[311927087,1705504242823,-652.19,0.00022054,2]
[311927089,1705504242835,-500.0,0.00022054,2]
[311927091,1705504242846,-500.0,0.00022054,2]
[311927094,1705504242858,-500.0,0.00022054,2]
[311927096,1705504242870,-201.66657356,0.00022054,2]
[311927098,1705504242881,-500.0,0.00022054,2]
[311927100,1705504242892,-500.0,0.00022054,2]
[311927102,1705504242904,-656.33,0.00022054,2]
[311927116,1705504243018,-5715.73,0.00022054,2]
[311927118,1705504243030,-500.0,0.00022054,2]
[311927120,1705504243039,-500.0,0.00022054,2]
[311927122,1705504243048,-1194.57,0.00022054,2]
[311927124,1705504243057,-717.95,0.00022054,2]
[311927126,1705504243066,-500.0,0.00022054,2]
[311927128,1705504243075,-434.48775725,0.00022054,2]
[311927130,1705504243084,-500.0,0.00022054,2]
[311927132,1705504243093,-500.0,0.00022054,2]
[311927134,1705504243103,-500.0,0.00022054,2]
[311927136,1705504243112,-500.0,0.00022054,2]
[311927138,1705504243123,-500.0,0.00022054,2]
[311927140,1705504243132,-722.74,0.00022054,2]
[311927142,1705504243141,-322.25229753,0.00022054,2]
[311927144,1705504243151,-500.0,0.00022054,2]
[311927146,1705504243160,-1505.14,0.00022054,2]
[311927148,1705504243169,-500.0,0.00022054,2]
[311927150,1705504243178,-500.0,0.00022054,2]
[311927152,1705504243187,-501.70820656,0.00022054,5]
[311927154,1705504243196,-12823.16,0.00022054,2]
[311927156,1705504243207,-1887.62,0.00022054,2]
[311927158,1705504243216,-500.0,0.00022054,2]
[311927160,1705504243226,-500.0,0.00022054,2]
[311927162,1705504243235,-500.0,0.00022054,2]
[311927164,1705504243244,-500.0,0.00022054,2]
[311927166,1705504243252,-500.0,0.00022054,2]
[311927168,1705504243262,-1130.85,0.00022054,2]
[311927170,1705504243271,-500.0,0.00022054,2]
[311927172,1705504243280,-500.0,0.00022054,2]
[311927174,1705504243289,-1482.98,0.00022054,2]
[311927176,1705504243298,-606.13,0.00022054,2]
[311927178,1705504243307,-241.37531993,0.00022054,2]
[311927180,1705504243316,-1589.01,0.00022054,2]
[311927182,1705504243330,-500.0,0.00022054,2]
[311927185,1705504243340,-500.0,0.00022054,2]
[311927186,1705504243349,-2415.92,0.00022054,2]
[311927188,1705504243359,-600.88725899,0.00022054,2]
[311927190,1705504243368,-13372.02,0.00022054,2]
[311927192,1705504243377,-500.0,0.00022054,2]
[311927194,1705504243387,-500.0,0.00022054,2]
[311927197,1705504243396,-500.0,0.00022054,2]
[311927199,1705504243405,-500.0,0.00022054,2]
[311927200,1705504243415,-500.0,0.00022054,2]
[311927202,1705504243425,-500.0,0.00022054,2]
[311927204,1705504243434,-501.23,0.00022054,2]
[311927208,1705504243455,-500.0,0.00022054,2]
[311927210,1705504243466,-500.0,0.00022054,2]
[311927212,1705504243476,-500.0,0.00022054,2]
[311927214,1705504243486,-500.0,0.00022054,2]
[311927216,1705504243496,-500.0,0.00022054,2]
[311927218,1705504243506,-2109.97,0.00022054,2]
[311927220,1705504243515,-500.0,0.00022054,2]
[311927222,1705504243525,-500.0,0.00022054,2]
[311927224,1705504243535,-573.28,0.00022054,2]
[311927226,1705504243544,-500.0,0.00022054,2]
[311927229,1705504243555,-500.0,0.00022054,2]
[311927231,1705504243564,-500.0,0.00022054,2]
[311927233,1705504243574,-4932.27,0.00022054,2]
[311927235,1705504243583,-500.0,0.00022054,2]
[311927237,1705504243592,-23081.27,0.00022054,2]
[311927239,1705504243601,-500.0,0.00022054,2]
[311927241,1705504243611,-500.0,0.00022054,2]
[311927243,1705504243620,-500.0,0.00022054,2]
[311927245,1705504243630,-500.0,0.00022054,2]
[311927247,1705504243640,-647.20940743,0.00022075,2]
[311927249,1705504243650,-500.0,0.0002219,2]
[311927251,1705504243659,-500.0,0.0002219,2]
[311927253,1705504243670,-500.0,0.0002219,2]
[311927255,1705504243680,-500.0,0.00022191,2]
[311927257,1705504243693,-500.0,0.00022191,2]
[311927259,1705504243705,-1231.63,0.00022191,2]
[311927261,1705504243715,-500.0,0.00022191,2]
[311927263,1705504243724,-267.89510385,0.00022191,2]
[311927266,1705504243735,-606.76,0.00022191,2]
[311927268,1705504243744,-500.0,0.00022191,2]
[311927270,1705504243754,-500.0,0.00022191,2]
[311927272,1705504243763,-596.37,0.00022191,2]
[311927274,1705504243773,-510.71,0.00022191,2]
[311927275,1705504243783,-626.7,0.00022191,2]
[311927278,1705504243793,-500.0,0.00022191,2]
[311927280,1705504243802,-500.0,0.00022191,2]
[311927282,1705504243812,-500.0,0.00022191,2]
[311927284,1705504243821,-500.0,0.00022191,2]
[311927286,1705504243831,-500.0,0.00022191,2]
[311927288,1705504243840,-500.0,0.00022191,2]
[311927290,1705504243850,-500.0,0.00022191,2]
[311927292,1705504243860,-925.73,0.00022191,2]
[311927294,1705504243869,-500.0,0.00022191,2]
[311927297,1705504243879,-500.0,0.00022191,2]
[311927299,1705504243888,-500.0,0.00022191,2]
[311927301,1705504243898,-500.0,0.00022191,2]
[311927303,1705504243907,-1922.32,0.00022191,2]
[311927305,1705504243916,-519.01649096,0.00022191,2]
[311927307,1705504243926,-500.0,0.00022191,2]
[311927309,1705504243935,-500.0,0.00022191,2]
[311927312,1705504243944,-2772.8,0.00022191,2]
[311927314,1705504243955,-500.0,0.00022191,2]
[311927316,1705504243964,-500.0,0.00022191,2]
[311927318,1705504243973,-500.0,0.00022191,2]
[311927320,1705504243982,-224.20797195,0.00022191,2]
[311927322,1705504243991,-500.0,0.00022191,2]
[311927324,1705504244001,-500.0,0.00022191,2]
[311927327,1705504244010,-500.0,0.00022191,2]
[311927330,1705504244019,-500.0,0.00022191,2]
[311927334,1705504244029,-500.0,0.00022191,2]
[311927339,1705504244040,-500.0,0.00022191,2]
[311927341,1705504244049,-603.61780197,0.00022191,2]
[311927346,1705504244059,-500.0,0.00022191,2]
[311927350,1705504244068,-720.39,0.00022191,2]
[311927352,1705504244078,-500.0,0.00022191,2]
[311927355,1705504244087,-500.0,0.00022191,2]
[311927358,1705504244097,-500.0,0.00022191,2]
[311927360,1705504244106,-597.39,0.00022191,2]
[311927363,1705504244115,-500.0,0.00022191,2]
[311927366,1705504244125,-500.0,0.00022191,2]
[311927369,1705504244134,-500.0,0.00022191,2]
[311927371,1705504244144,-1006.04,0.00022191,2]
[311927373,1705504244153,-500.0,0.00022191,2]
[311927375,1705504244163,-500.0,0.00022191,2]
[311927377,1705504244173,-500.0,0.00022191,2]
[311927380,1705504244183,-500.0,0.00022191,2]
[311927382,1705504244193,-547.60006591,0.00022191,2]
[311927384,1705504244203,-500.0,0.00022191,2]
[311927386,1705504244213,-500.0,0.00022191,2]
[311927388,1705504244223,-1362.15,0.00022191,2]
[311927390,1705504244232,-767.89,0.00022191,2]
[311927392,1705504244242,-1140.46,0.00022191,2]
[311927394,1705504244251,-500.0,0.00022191,2]
[311927396,1705504244260,-2148.0,0.00022191,2]
[311927398,1705504244270,-500.0,0.00022191,2]
[311927399,1705504244279,-6084.07,0.00022191,2]
[311927402,1705504244289,-6934.8,0.00022191,2]
[311927404,1705504244298,-500.0,0.00022191,2]
[311927406,1705504244307,-500.0,0.00022191,2]
[311927408,1705504244316,-500.0,0.00022191,2]
[311927410,1705504244326,-658.6,0.00022191,2]
[311927411,1705504244334,-500.0,0.00022191,2]
[311927414,1705504244346,-500.0,0.00022191,2]
[311927416,1705504244355,-2351.28,0.00022191,2]
[311927417,1705504244364,-500.0,0.00022191,2]
[311927420,1705504244373,-652.19,0.00022191,2]
[311927422,1705504244383,-500.0,0.00022191,2]
[311927424,1705504244392,-500.0,0.00022191,2]
[311927426,1705504244401,-500.0,0.00022191,2]
[311927428,1705504244409,-500.0,0.00022191,2]
[311927430,1705504244419,-500.0,0.00022191,2]
[311927432,1705504244427,-656.33,0.00022191,2]
[311927434,1705504244437,-5715.73,0.00022191,2]
[311927435,1705504244446,-500.0,0.00022191,2]
[311927438,1705504244457,-500.0,0.00022191,2]
[311927440,1705504244466,-1194.57,0.00022191,2]
[311927442,1705504244476,-717.95,0.00022191,2]
[311927444,1705504244486,-500.0,0.00022191,2]
[311927446,1705504244496,-500.0,0.00022191,2]
[311927448,1705504244505,-500.0,0.00022191,2]
[311927450,1705504244515,-500.0,0.00022191,2]
[311927452,1705504244524,-722.74,0.00022191,2]
[311927454,1705504244534,-1505.14,0.00022191,2]
[311927456,1705504244543,-500.0,0.00022191,2]
[311927458,1705504244552,-500.0,0.00022191,2]
[311927460,1705504244561,-12823.16,0.00022191,2]
[311927462,1705504244570,-1887.62,0.00022191,2]
[311927464,1705504244580,-500.0,0.00022191,2]
[311927466,1705504244589,-500.0,0.00022191,2]
[311927468,1705504244599,-500.0,0.00022191,2]
[311927470,1705504244608,-1130.85,0.00022191,2]
[311927472,1705504244617,-500.0,0.00022191,2]
[311927474,1705504244626,-708.79343776,0.00022191,2]
[311927495,1705504244820,-774.18656224,0.00022191,2]
[311927497,1705504244829,-606.13,0.00022191,2]
[311927499,1705504244838,-1589.01,0.00022191,2]
[311927501,1705504244847,-500.0,0.00022191,2]
[311927503,1705504244857,-500.0,0.00022191,2]
[311927505,1705504244866,-713.11502657,0.00022191,2]
[311927534,1705504245123,-154.95351395,0.00021906,4]
[311927536,1705504245132,-282.36829516,0.00021907,3]
[311927538,1705504245143,-8295.18170484,0.00021907,3]
[311927540,1705504245152,-1702.80497343,0.00022191,2]
[311927542,1705504245161,-13372.02,0.00022191,2]
[311927544,1705504245170,-500.0,0.00022191,2]
[311927546,1705504245179,-500.0,0.00022191,2]
[311927548,1705504245188,-515.61152056,0.00022191,2]
[311927550,1705504245197,-500.0,0.00022191,2]
[311927552,1705504245208,-500.0,0.00022191,2]
[311927554,1705504245217,-501.23,0.00022191,2]
[311927556,1705504245226,-374.69803746,0.00022191,2]
[311927558,1705504245235,-500.0,0.00022191,2]
[311927559,1705504245244,-500.0,0.00022191,2]
[311927562,1705504245254,-500.0,0.00022191,2]
[311927564,1705504245263,-500.0,0.00022191,2]
[311927566,1705504245272,-2109.97,0.00022191,2]
[311927568,1705504245281,-500.0,0.00022191,2]
[311927570,1705504245291,-573.28,0.00022191,2]
[311927572,1705504245299,-500.0,0.00022191,2]
[311927573,1705504245308,-3487.02624572,0.00022191,2]
[311927576,1705504245326,-1445.24375428,0.00022191,2]
[311927578,1705504245336,-500.0,0.00022191,2]
[311927580,1705504245345,-1610.03427904,0.00022191,2]
[311927583,1705504245358,-21471.23572096,0.00022191,2]
[311927585,1705504245367,-646.32186224,0.00022191,2]
[311927587,1705504245376,-58.32597488,0.00022191,2]
[311927590,1705504245388,-441.67402512,0.00022191,2]
[311927593,1705504245398,-500.0,0.00022191,2]
[311927596,1705504245407,-500.0,0.00022191,2]
[311927598,1705504245417,-200.0,0.00022214,7]
[311927600,1705504245429,-500.0,0.00022327,2]
[311927602,1705504245439,-500.0,0.00022327,2]
[311927604,1705504245449,-500.0,0.00022327,2]
[311927606,1705504245460,-500.0,0.00022328,2]
[311927609,1705504245470,-613.03896845,0.00022328,2]
[311927612,1705504245481,-618.59103155,0.00022328,2]
[311927615,1705504245490,-642.92719633,0.00022328,2]
[311927617,1705504245499,-606.76,0.00022328,2]
[311927619,1705504245508,-500.0,0.00022328,2]
[311927621,1705504245518,-596.37,0.00022328,2]
[311927624,1705504245527,-510.71,0.00022328,2]
[311927626,1705504245537,-626.7,0.00022328,2]
[311927628,1705504245546,-500.0,0.00022328,2]
[311927631,1705504245556,-500.0,0.00022328,2]
[311927635,1705504245565,-500.0,0.00022328,2]
[311927637,1705504245575,-500.0,0.00022328,2]
[311927638,1705504245584,-500.0,0.00022328,2]
[311927640,1705504245592,-500.0,0.00022328,2]
[311927642,1705504245601,-925.73,0.00022328,2]
[311927644,1705504245610,-500.0,0.00022328,2]
[311927646,1705504245619,-182.83584895,0.00022328,2]
[311927648,1705504245628,-500.0,0.00022328,2]
[311927650,1705504245638,-500.0,0.00022328,2]
[311927652,1705504245647,-1922.32,0.00022328,2]
[311927654,1705504245656,-500.0,0.00022328,2]
[311927656,1705504245666,-2772.8,0.00022328,2]
[311927658,1705504245681,-500.0,0.00022328,2]
[311927662,1705504245691,-500.0,0.00022328,2]
[311927664,1705504245700,-500.0,0.00022328,2]
[311927667,1705504245712,-500.0,0.00022328,2]
[311927670,1705504245721,-512.79297288,0.00022328,2]
[311927673,1705504245730,-500.0,0.00022328,2]
[311927675,1705504245739,-500.0,0.00022328,2]
[311927678,1705504245748,-720.39,0.00022328,2]
[311927681,1705504245758,-500.0,0.00022328,2]
[311927684,1705504245768,-597.39,0.00022328,2]
[311927687,1705504245778,-500.0,0.00022328,2]
[311927690,1705504245787,-608.64434299,0.00022328,2]
[311927693,1705504245796,-1006.04,0.00022328,2]
[311927696,1705504245805,-258.35703301,0.00022328,2]
[311927699,1705504245814,-500.0,0.00022328,2]
[311927702,1705504245823,-767.89,0.00022328,2]
[311927705,1705504245833,-1140.46,0.00022328,2]
[311927707,1705504245842,-500.0,0.00022328,2]
[311927709,1705504245851,-2148.0,0.00022328,2]
[311927711,1705504245861,-500.0,0.00022328,2]
[311927713,1705504245870,-6084.07,0.00022328,2]
[311927715,1705504245879,-6934.8,0.00022328,2]
[311927717,1705504245889,-500.0,0.00022328,2]
[311927719,1705504245897,-500.0,0.00022328,2]
[311927721,1705504245907,-500.0,0.00022328,2]
[311927723,1705504245915,-658.6,0.00022328,2]
[311927725,1705504245925,-619.60676546,0.00022328,2]
[311927727,1705504245934,-500.0,0.00022328,2]
[311927729,1705504245943,-2351.28,0.00022328,2]
[311927731,1705504245953,-500.0,0.00022328,2]
[311927733,1705504245962,-652.19,0.00022328,2]
[311927735,1705504245971,-500.0,0.00022328,2]
[311927737,1705504245979,-500.0,0.00022328,2]
[311927739,1705504245988,-656.33,0.00022328,2]
[311927741,1705504245997,-5715.73,0.00022328,2]
[311927742,1705504246006,-500.0,0.00022328,2]
[311927744,1705504246015,-1194.57,0.00022328,2]
[311927746,1705504246025,-717.95,0.00022328,2]
[311927748,1705504246034,-500.0,0.00022328,2]
[311927750,1705504246043,-500.0,0.00022328,2]
[311927753,1705504246053,-722.74,0.00022328,2]
[311927755,1705504246062,-1505.14,0.00022328,2]
[311927756,1705504246071,-500.0,0.00022328,2]
[311927758,1705504246080,-500.0,0.00022328,2]
[311927760,1705504246089,-12823.16,0.00022328,2]
[311927762,1705504246098,-1887.62,0.00022328,2]
[311927764,1705504246107,-500.0,0.00022328,2]
[311927766,1705504246116,-500.0,0.00022328,2]
[311927768,1705504246125,-1130.85,0.00022328,2]
[311927770,1705504246134,-500.0,0.00022328,2]
[311927772,1705504246144,-1482.98,0.00022328,2]
[311927774,1705504246153,-606.13,0.00022328,2]
[311927776,1705504246162,-1589.01,0.00022328,2]
[311927778,1705504246171,-2415.92,0.00022328,2]
[311927780,1705504246181,-13372.02,0.00022328,2]
[311927782,1705504246190,-500.0,0.00022328,2]
[311927784,1705504246200,-542.59799575,0.00022328,2]
[311927786,1705504246211,-500.0,0.00022328,2]
[311927788,1705504246221,-500.0,0.00022328,2]
[311927790,1705504246230,-501.23,0.00022328,2]
[311927800,1705504246309,-500.0,0.00022328,2]
[311927802,1705504246321,-500.0,0.00022328,2]
[311927804,1705504246329,-2109.97,0.00022328,2]
[311927806,1705504246339,-500.0,0.00022328,2]
[311927808,1705504246348,-573.28,0.00022328,2]
[311927810,1705504246358,-500.0,0.00022328,2]
[311927812,1705504246366,-4932.27,0.00022328,2]
[311927814,1705504246375,-500.0,0.00022328,2]
[311927816,1705504246385,-23081.27,0.00022328,2]
[311927818,1705504246394,-500.0,0.00022328,2]
[311927820,1705504246404,-500.0,0.00022328,2]
[311927822,1705504246413,-500.0,0.00022328,2]
[311927824,1705504246422,-166.666666,0.00022431,2]
[311927826,1705504246431,-322.69466175,0.00022462,2]
[311927828,1705504246440,-1578.56465011,0.00022463,2]
[311927830,1705504246449,-560.92808973,0.00022463,2]
[311927832,1705504246461,-285.81505308,0.00022463,2]
[311927834,1705504246471,-587.34193161,0.00022463,2]
[311927836,1705504246479,-298.63455289,0.00022463,2]
[311927837,1705504246488,-155.57753322,0.00022463,2]
[311927839,1705504246497,-181.40465391,0.00022463,2]
[311927842,1705504246509,-2811.32428673,0.00022463,2]
[311927843,1705504246518,-646.70745347,0.00022463,2]
[311927845,1705504246527,-156.66129121,0.00022463,2]
[311927847,1705504246536,-156.00838388,0.00022463,2]
[311927849,1705504246545,-162.57415881,0.00022464,2]
[311927851,1705504246554,-4052.84648521,0.00022464,2]
[311927853,1705504246564,-500.0,0.00022464,2]
[311927855,1705504246573,-500.0,0.00022464,2]
[311927857,1705504246582,-500.0,0.00022464,2]
[311927859,1705504246592,-212.00277784,0.00022465,2]
[311927861,1705504246601,-500.0,0.00022465,2]
[311927863,1705504246610,-1231.63,0.00022465,2]
[311927865,1705504246619,-606.76,0.00022465,2]
[311927867,1705504246628,-596.37,0.00022465,2]
[311927869,1705504246638,-510.71,0.00022465,2]
[311927871,1705504246647,-626.7,0.00022465,2]
[311927873,1705504246657,-499.73562452,0.00022465,2]
[311927875,1705504246666,-500.0,0.00022465,2]